bitfinex-derivatives/quotes_SOLF0:USTF0_20260304
["timestamp","ask_amount","ask_price","bid_price","bid_amount"]
[1772636528562,330.713,90.746,90.571,12.31570375]
[1772636528860,20.944002,90.71,90.616,10.07314237]
[1772636529160,9.925,90.673,90.624,9.93]
[1772636529356,19.835,90.743,90.59,20.944002]
[1772636529357,20.944002,90.74,90.626,12.31047661]
[1772636529562,20.944002,90.74,90.629,10.07314237]
[1772636529762,0.31075056,90.739,90.628,10.07314237]
[1772636529964,0.31075056,90.739,90.632,22.38361898]
[1772636530163,0.31075056,90.739,90.639,10.07314237]
[1772636530463,9.923,90.693,90.636,9.929]
[1772636530665,0.3111316,90.715,90.622,10.07314237]
[1772636530866,0.64335493,90.709,90.618,12.31028609]
[1772636531369,0.64335493,90.709,90.611,10.07314237]
[1772636531571,9.924,90.683,90.623,9.93]
[1772636531872,9.924,90.683,90.634,10.07314237]
[1772636532072,9.924,90.683,90.639,10.07314237]
[1772636532273,1.02394329,90.739,90.652,10.07314237]
[1772636532469,1.02394329,90.739,90.654,10.07314237]
[1772636532664,1.02394329,90.739,90.6,20.944002]
[1772636532665,1.02394329,90.699,90.624,13.20770947]
[1772636532873,1.02394329,90.699,90.62,12.28416428]
[1772636533471,1.02394329,90.699,90.601,13.20770947]
[1772636533769,1.02394329,90.699,90.515,154.664]
[1772636533770,9.925,90.671,90.616,9.931]
[1772636533971,1.02394329,90.699,90.607,12.27903924]
[1772636534373,1.02394329,90.699,90.616,12.29275275]
[1772636534664,1.02394329,90.699,90.617,12.29275275]
[1772636534869,9.923,90.691,90.637,9.929]
[1772636535270,1.02394329,90.699,90.621,12.28797285]
[1772636535467,1.97895697,90.725,90.631,12.28797285]
[1772636535671,20.944002,90.74,90.643,12.28797285]
[1772636535873,1.97895697,90.748,90.652,12.28797285]
[1772636536383,2.19139912,90.739,90.627,12.33845327]
[1772636536673,2.19139912,90.739,90.632,13.20770947]
[1772636536874,2.19139912,90.739,90.629,12.33845327]
[1772636536875,2.50175697,90.737,90.629,12.33845327]
[1772636537280,2.50983706,90.717,90.629,12.33845327]
[1772636537474,2.50983706,90.709,90.589,25.54212269]
[1772636537670,2.50983706,90.675,90.591,9.934]
[1772636537866,2.81641063,90.709,90.593,13.20770947]
[1772636538068,2.81641063,90.709,90.608,12.30181069]
[1772636538377,9.922,90.704,90.625,12.30181069]
[1772636538573,3.19319444,90.739,90.631,13.38552929]
[1772636538878,3.49250205,90.749,90.657,13.38552929]
[1772636539077,3.49250205,90.749,90.658,8.59043756]
[1772636539277,3.49250205,90.749,90.622,20.44675351]
[1772636539278,3.49250205,90.749,90.66,13.38552929]
[1772636539579,3.49250205,90.749,90.662,13.38552929]
[1772636539774,3.80542674,90.779,90.664,13.38552929]
[1772636539972,3.80542674,90.779,90.667,13.38552929]
[1772636540276,3.80542674,90.779,90.669,13.38552929]
[1772636540477,3.80542674,90.779,90.677,13.38552929]
[1772636540676,3.80542674,90.779,90.679,13.38552929]
[1772636540878,3.80542674,90.779,90.681,13.38552929]
[1772636541074,3.80542674,90.779,90.683,13.38552929]
[1772636541381,4.04019485,90.749,90.684,0.00043756]
[1772636541575,4.04019485,90.749,90.636,13.38552929]
[1772636541774,4.32940618,90.719,90.636,13.38552929]
[1772636542075,4.32940618,90.719,90.612,13.38552929]
[1772636542475,4.32940618,90.719,90.617,13.38552929]
[1772636542680,4.34630062,90.774,90.673,13.38552929]
[1772636543173,4.34630062,90.774,90.599,26.54010185]
[1772636543174,9.913,90.78,90.714,13.82014095]
[1772636543378,4.92346898,90.809,90.714,13.82014095]
[1772636543781,144.944002,90.83,90.751,9.916]
[1772636544076,20.944002,90.83,90.743,13.82014095]
[1772636544274,9.912,90.791,90.702,13.82014095]
[1772636544681,5.13170338,90.806,90.702,13.82014095]
[1772636544974,20.944002,90.83,90.702,13.82014095]
[1772636545173,5.407945,90.831,90.711,13.82014095]
[1772636545379,9.909,90.815,90.748,13.82014095]
[1772636545775,129.68736923,90.85,90.748,13.82014095]
[1772636545976,9.909,90.821,90.748,13.82014095]
[1772636546382,9.909,90.822,90.75,13.82014095]
[1772636546575,5.68736923,90.849,90.75,13.82014095]
[1772636546977,6.132492,90.834,90.75,13.82014095]
[1772636547476,6.14025999,90.869,90.75,13.82014095]
[1772636547676,6.14025999,90.869,90.779,13.82014095]
[1772636548278,6.14025999,90.869,90.741,13.82014095]
[1772636548679,9.905,90.857,90.767,13.82014095]
[1772636548880,6.72516158,90.856,90.767,13.82014095]
[1772636549278,6.73315318,90.854,90.767,13.82014095]
[1772636549582,6.73315318,90.854,90.721,13.82014095]
[1772636549782,6.9933998,90.819,90.721,13.82014095]
[1772636550482,27.95126245,90.84,90.721,13.82014095]
[1772636550678,7.00726045,90.839,90.721,13.82014095]
[1772636551078,7.26497693,90.825,90.751,9.916]
[1772636551376,7.27285041,90.85,90.751,13.82014095]
[1772636551576,7.27285041,90.872,90.779,13.82014095]
[1772636552277,20.944002,90.89,90.797,13.82014095]
[1772636552476,7.54268233,90.889,90.797,13.82014095]
[1772636552676,7.54268233,90.889,90.806,9.91]
[1772636552876,7.54268233,90.889,90.797,13.82014095]
[1772636553178,18.34457138,90.914,90.797,13.82014095]
[1772636553384,9.9,90.904,90.84,9.907]
[1772636553585,7.80182162,90.913,90.823,13.82014095]
[1772636553982,7.80182162,90.913,90.836,13.82014095]
[1772636554188,10.54274976,90.914,90.836,13.82014095]
[1772636555186,20.44174976,90.914,90.837,9.907]
[1772636555378,10.54274976,90.914,90.838,13.82014095]
[1772636555578,8.50925536,90.962,90.842,13.82014095]
[1772636555777,8.50925536,90.962,90.83,20.944002]
[1772636555778,13.8528502,90.948,90.867,13.82014095]
[1772636556283,13.8528502,90.949,90.844,13.82014095]
[1772636556587,13.8528502,90.919,90.801,13.82014095]
[1772636556885,13.8528502,90.919,90.818,13.82014095]
[1772636557386,20.944002,90.93,90.818,13.82014095]
[1772636557387,13.8528502,90.893,90.818,13.82014095]
[1772636557584,20.944002,90.93,90.818,13.82014095]
[1772636557585,13.8528502,90.929,90.818,13.82014095]
[1772636557983,20.944002,90.9,90.795,13.82014095]
[1772636558285,13.8528502,90.899,90.795,13.82014095]
[1772636558481,13.8528502,90.899,90.751,13.82014095]
[1772636558787,13.8528502,90.869,90.751,13.82014095]
[1772636559178,9.907,90.842,90.754,13.82014095]
[1772636559485,13.8528502,90.839,90.711,13.82014095]
[1772636559876,9.909,90.819,90.725,13.82014095]
[1772636560277,13.8528502,90.839,90.725,13.82014095]
[1772636560481,13.8528502,90.839,90.748,13.82014095]
[1772636560882,13.8528502,90.839,90.711,13.82014095]
[1772636561080,13.8528502,90.819,90.711,13.82014095]
[1772636561687,13.8528502,90.849,90.735,13.82014095]
[1772636562278,13.8528502,90.843,90.681,13.82014095]
[1772636562583,13.8528502,90.843,90.68,20.944002]
[1772636562584,13.8528502,90.819,90.683,13.82014095]
[1772636562783,13.8528502,90.819,90.685,13.82014095]
[1772636562980,13.8528502,90.819,90.708,13.82014095]
[1772636563181,13.8528502,90.789,90.683,13.82014095]
[1772636563588,13.8528502,90.789,90.657,154.423]
[1772636563589,9.91,90.811,90.728,13.82014095]
[1772636563886,154.043,90.881,90.728,13.82014095]
[1772636563887,13.8528502,90.879,90.728,13.82014095]
[1772636564087,13.8528502,90.859,90.728,13.82014095]
[1772636564283,13.8528502,90.859,90.753,13.82014095]
[1772636564581,13.8528502,90.869,90.753,13.82014095]
[1772636564981,9.907,90.841,90.764,9.915]
[1772636565280,13.8528502,90.869,90.753,13.82014095]
[1772636565480,20.944002,90.9,90.755,13.82014095]
[1772636565686,13.8528502,90.899,90.755,13.82014095]
[1772636565889,9.903,90.879,90.786,13.82014095]
[1772636566089,13.8528502,90.899,90.786,13.82014095]
[1772636566490,13.8528502,90.899,90.805,13.82014095]
[1772636566684,13.8528502,90.899,90.718,154.318]
[1772636566685,13.8528502,90.889,90.771,13.82014095]
[1772636567089,9.906,90.846,90.771,13.82014095]
[1772636567289,13.8528502,90.845,90.744,13.82014095]
[1772636568282,9.909,90.818,90.747,9.917]
[1772636568593,13.8528502,90.845,90.744,13.82014095]
[1772636568788,9.908,90.829,90.747,9.917]
[1772636568992,13.8528502,90.845,90.744,13.82014095]
[1772636569690,13.8528502,90.845,90.691,16.66008676]
[1772636569890,9.911,90.801,90.73,9.919]
[1772636570194,16.39733412,90.813,90.693,16.66008676]
[1772636570590,9.917,90.742,90.659,9.926]
[1772636570785,16.39733412,90.741,90.614,16.66008676]
[1772636570987,16.39733412,90.741,90.615,8.18629575]
[1772636571192,16.39733412,90.741,90.644,16.66008676]
[1772636571590,16.39733412,90.729,90.601,16.66008676]
[1772636571794,16.39733412,90.709,90.603,26.59308676]
[1772636572195,16.39733412,90.699,90.603,26.59308676]
[1772636572497,16.39733412,90.695,90.603,26.59308676]
[1772636572696,16.39733412,90.695,90.603,16.66008676]
[1772636572897,16.39733412,90.724,90.603,16.66008676]
[1772636573097,16.39733412,90.724,90.619,16.66008676]
[1772636573393,16.39733412,90.692,90.544,16.66008676]
[1772636573597,16.39733412,90.692,90.561,16.66008676]
[1772636573893,9.925,90.677,90.59,9.934]
[1772636574094,16.39733412,90.692,90.591,16.66008676]
[1772636575099,9.925,90.677,90.593,9.934]
[1772636575399,16.39733412,90.692,90.594,16.66008676]
[1772636575600,9.925,90.677,90.582,16.66008676]
[1772636575800,16.39733412,90.677,90.582,16.66008676]
[1772636576195,16.39733412,90.651,90.558,16.66008676]
[1772636576592,9.925,90.671,90.577,9.935]
[1772636576796,16.39733412,90.709,90.579,16.66008676]
[1772636577193,16.39733412,90.679,90.579,16.66008676]
[1772636578001,9.923,90.691,90.604,16.66008676]
[1772636578203,16.39733412,90.705,90.604,16.66008676]
[1772636578592,9.922,90.704,90.606,9.932]
[1772636578793,9.922,90.704,90.607,16.66008676]
[1772636578997,16.39733412,90.705,90.623,9.93]
[1772636579201,16.39733412,90.705,90.607,16.66008676]
[1772636579806,16.39733412,90.705,90.61,16.66008676]
[1772636580305,9.919,90.73,90.634,16.66008676]
[1772636580603,16.39733412,90.729,90.609,16.66008676]
[1772636580803,16.39733412,90.709,90.609,16.66008676]
[1772636581106,16.39733412,90.689,90.588,16.66008676]
[1772636581607,16.39733412,90.715,90.59,16.66008676]
[1772636581806,16.39733412,90.715,90.592,16.66008676]
[1772636582006,16.39733412,90.715,90.594,16.66008676]
[1772636582206,16.39733412,90.715,90.57,31.37038994]
[1772636582207,16.39733412,90.715,90.596,16.66008676]
[1772636582401,16.39733412,90.713,90.598,16.66008676]
[1772636582602,16.39733412,90.713,90.601,16.66008676]
[1772636582807,16.39733412,90.713,90.603,16.66008676]
[1772636583005,16.39733412,90.744,90.659,9.926]
[1772636583307,16.39733412,90.739,90.611,16.66008676]
[1772636583507,16.39733412,90.705,90.624,9.93]
[1772636583708,16.39733412,90.705,90.611,16.66008676]
[1772636584110,9.922,90.703,90.623,9.93]
[1772636584407,16.39733412,90.731,90.611,16.66008676]
[1772636584611,16.39733412,90.731,90.6,31.37038994]
[1772636584612,16.39733412,90.731,90.616,16.66008676]
[1772636584816,16.39733412,90.731,90.615,154.495]
[1772636584817,16.39733412,90.731,90.644,16.66008676]
[1772636585311,16.39733412,90.756,90.681,9.924]
[1772636585515,16.39733412,90.756,90.644,16.66008676]
[1772636585908,16.39733412,90.756,90.687,9.923]
[1772636586115,16.39733412,90.799,90.671,16.66008676]
[1772636586513,9.913,90.779,90.671,16.66008676]
[1772636586710,16.39733412,90.799,90.673,16.66008676]
[1772636586917,16.39733412,90.799,90.675,16.66008676]
[1772636587122,16.39733412,90.765,90.687,9.923]
[1772636587412,31.37038994,90.8,90.675,16.66008676]
[1772636587413,16.39733412,90.789,90.675,16.66008676]
[1772636587618,16.39733412,90.76,90.683,9.924]
[1772636587818,16.39733412,90.76,90.675,16.66008676]
[1772636588019,16.39733412,90.789,90.675,16.66008676]
[1772636588222,16.39733412,90.782,90.675,16.66008676]
[1772636588419,16.39733412,90.769,90.631,16.66008676]
[1772636588618,9.915,90.763,90.688,9.923]
[1772636589114,9.917,90.746,90.669,16.66008676]
[1772636589322,26.31433412,90.746,90.669,16.66008676]
[1772636589615,16.39733412,90.745,90.631,16.66008676]
[1772636589819,16.39733412,90.72,90.606,16.66008676]
[1772636590319,16.39733412,90.696,90.606,16.66008676]
[1772636590624,16.39733412,90.696,90.571,16.66008676]
[1772636591015,154.331,90.712,90.571,16.66008676]
[1772636591016,16.39733412,90.657,90.571,16.66008676]
[1772636591520,16.39733412,90.657,90.541,16.66008676]
[1772636592321,9.929,90.634,90.559,9.937]
[1772636592524,16.39733412,90.657,90.541,16.66008676]
[1772636592721,26.32433412,90.657,90.577,9.935]
[1772636593018,16.39733412,90.657,90.541,16.66008676]
[1772636593421,9.929,90.634,90.563,9.937]
[1772636593618,16.39733412,90.657,90.563,9.937]
[1772636593816,9.929,90.635,90.573,9.936]
[1772636594214,9.929,90.635,90.541,16.66008676]
[1772636594717,16.39733412,90.657,90.541,16.66008676]
[1772636595120,16.39733412,90.657,90.527,154.643]
[1772636595121,16.39733412,90.657,90.551,16.66008676]
[1772636595319,9.927,90.654,90.577,16.66008676]
[1772636595717,16.39733412,90.657,90.58,9.935]
[1772636595923,16.39733412,90.657,90.581,16.66008676]
[1772636596319,31.37038994,90.7,90.581,16.66008676]
[1772636596320,16.39733412,90.699,90.581,16.66008676]
[1772636596723,9.923,90.687,90.581,16.66008676]
[1772636596924,16.39733412,90.699,90.606,16.66008676]
[1772636597223,16.39733412,90.699,90.612,16.66008676]
[1772636597826,9.924,90.687,90.612,16.66008676]
[1772636598527,16.39733412,90.699,90.612,16.66008676]
[1772636598923,9.925,90.675,90.592,9.934]
[1772636599123,9.925,90.675,90.585,20.11163095]
[1772636599330,16.39733412,90.699,90.585,20.11163095]
[1772636599730,9.922,90.698,90.624,9.93]
[1772636599928,16.39733412,90.699,90.624,9.93]
[1772636600127,19.52878974,90.723,90.609,20.11163095]
[1772636600927,9.92,90.722,90.643,9.928]
[1772636601131,19.52878974,90.723,90.643,9.928]
[1772636601532,19.52878974,90.759,90.634,20.11163095]
[1772636602024,19.52878974,90.754,90.659,20.11163095]
[1772636602431,9.922,90.702,90.634,9.929]
[1772636602733,9.922,90.702,90.621,20.11163095]
[1772636602734,19.52878974,90.702,90.621,20.11163095]
[1772636603325,19.52878974,90.702,90.597,19.33686093]
[1772636603529,19.52878974,90.702,90.599,19.33686093]
[1772636603736,20.21488213,90.699,90.574,19.33686093]
[1772636603938,20.21488213,90.669,90.546,19.33686093]
[1772636604230,9.929,90.637,90.548,19.33686093]
[1772636604533,20.21488213,90.641,90.55,19.33686093]
[1772636604729,20.21488213,90.641,90.53,31.37038994]
[1772636604730,20.21488213,90.641,90.552,19.33686093]
[1772636604929,20.21488213,90.641,90.554,19.33686093]
[1772636605129,20.21488213,90.641,90.556,19.33686093]
[1772636605333,31.37038994,90.67,90.556,19.33686093]
[1772636605334,30.14388213,90.632,90.562,9.937]
[1772636605532,20.21488213,90.631,90.562,9.937]
[1772636605730,31.37038994,90.67,90.562,19.33686093]
[1772636605934,20.21488213,90.646,90.562,19.33686093]
[1772636606232,20.21488213,90.646,90.514,13.27305729]
[1772636606233,20.21488213,90.646,90.537,19.33686093]
[1772636606628,20.21488213,90.621,90.537,19.33686093]
[1772636606833,20.21488213,90.621,90.5,31.37038994]
[1772636606834,20.21488213,90.621,90.502,19.33686093]
[1772636607029,20.21488213,90.621,90.555,9.938]
[1772636607234,31.37038994,90.65,90.532,19.33686093]
[1772636607235,20.21488213,90.645,90.532,19.33686093]
[1772636607530,20.21488213,90.645,90.534,19.33686093]
[1772636607833,20.21488213,90.621,90.534,19.33686093]
[1772636608435,20.21488213,90.621,90.508,19.33686093]
[1772636608630,20.21488213,90.621,90.5,31.37038994]
[1772636608631,20.21488213,90.621,90.51,19.33686093]
[1772636608835,9.928,90.642,90.564,9.937]
[1772636609135,20.21488213,90.649,90.559,19.33686093]
[1772636609333,20.21488213,90.649,90.531,19.33686093]
[1772636609533,20.21488213,90.649,90.551,9.938]
[1772636609739,20.21488213,90.649,90.533,19.33686093]
[1772636609936,9.931,90.615,90.545,9.939]
[1772636610136,20.21488213,90.624,90.533,19.33686093]
[1772636610536,20.21488213,90.624,90.533,29.27686093]
[1772636610739,20.21488213,90.624,90.533,19.33686093]
[1772636610936,20.21488213,90.624,90.535,19.33686093]
[1772636611134,20.21488213,90.624,90.537,19.33686093]
[1772636611631,20.21488213,90.624,90.511,19.33686093]
[1772636611830,20.21488213,90.624,90.529,9.941]
[1772636612033,20.21488213,90.624,90.513,19.33686093]
[1772636612238,9.932,90.611,90.538,9.94]
[1772636612438,9.932,90.611,90.539,8.27885189]
[1772636612741,9.932,90.611,90.521,19.33686093]
[1772636612934,9.931,90.621,90.532,19.33686093]
[1772636613139,9.931,90.621,90.534,19.33686093]
[1772636613334,20.21488213,90.624,90.542,9.939]
[1772636613535,20.21488213,90.649,90.544,19.33686093]
[1772636613740,20.21488213,90.649,90.546,19.33686093]
[1772636613936,20.21488213,90.649,90.551,19.33686093]
[1772636614142,20.21488213,90.649,90.559,19.33686093]
[1772636614344,9.93,90.627,90.562,9.937]
[1772636614538,20.21488213,90.649,90.535,29.40277606]
[1772636614743,20.21488213,90.649,90.536,8.29545136]
[1772636615040,20.21488213,90.615,90.537,8.29545136]
[1772636615242,20.21488213,90.615,90.538,8.30611107]
[1772636615437,20.21488213,90.615,90.512,10.06591513]
[1772636615641,20.21488213,90.587,90.513,8.31300258]
[1772636615835,20.21488213,90.587,90.506,19.33686093]
[1772636616040,20.21488213,90.587,90.507,8.31450796]
[1772636616241,20.21488213,90.587,90.508,8.31450796]
[1772636616442,20.21488213,90.587,90.509,8.31450796]
[1772636616643,20.21488213,90.587,90.51,8.31450796]
[1772636616845,20.21488213,90.578,90.511,8.31450796]
[1772636617140,20.21488213,90.578,90.512,8.31450796]
[1772636617446,7.98482166,90.57,90.472,19.33686093]
[1772636617647,20.21488213,90.573,90.486,19.33686093]
[1772636617942,20.21488213,90.569,90.488,19.33686093]
[1772636618143,20.21488213,90.569,90.465,19.33686093]
[1772636618342,20.21488213,90.569,90.467,19.33686093]
[1772636618543,20.21488213,90.569,90.469,19.33686093]
[1772636618745,20.21488213,90.569,90.471,19.33686093]
[1772636618945,9.939,90.55,90.485,9.946]
[1772636619541,9.939,90.541,90.476,19.33686093]
[1772636619747,20.21488213,90.569,90.477,8.29781386]
[1772636619945,7.98482166,90.55,90.478,8.29781386]
[1772636620145,20.21488213,90.549,90.453,19.33686093]
[1772636620344,20.21488213,90.549,90.44,7.98482166]
[1772636620345,20.21488213,90.549,90.455,19.33686093]
[1772636620650,7.98482166,90.53,90.457,19.33686093]
[1772636620850,28.19970379,90.53,90.457,19.33686093]
[1772636621047,20.21488213,90.529,90.457,19.33686093]
[1772636621253,9.944,90.498,90.431,19.33686093]
[1772636621552,20.21488213,90.529,90.433,19.33686093]
[1772636621750,7.98482166,90.55,90.441,19.33686093]
[1772636621951,7.98482166,90.55,90.45,7.98482166]
[1772636622152,7.98482166,90.55,90.452,19.33686093]
[1772636622354,9.941,90.526,90.459,19.33686093]
[1772636622651,7.98482166,90.55,90.459,19.33686093]
[1772636622846,7.98482166,90.55,90.461,19.33686093]
[1772636623049,28.19970379,90.58,90.47,7.98482166]
[1772636623249,28.19970379,90.58,90.472,19.33686093]
[1772636623457,20.21488213,90.606,90.491,19.33686093]
[1772636623657,20.21488213,90.606,90.493,19.33686093]
[1772636623860,9.935,90.586,90.522,19.33686093]
[1772636624060,20.21488213,90.606,90.522,19.33686093]
[1772636624357,20.21488213,90.606,90.416,154.834]
[1772636624358,20.21488213,90.569,90.491,19.33686093]
[1772636624544,154.485,90.621,90.491,19.33686093]
[1772636624545,7.98482166,90.59,90.491,19.33686093]
[1772636624752,7.98482166,90.59,90.438,20.1319715]
[1772636624753,7.98482166,90.59,90.493,19.33686093]
[1772636625053,20.21488213,90.596,90.495,19.33686093]
[1772636625349,7.98482166,90.61,90.52,19.33686093]
[1772636625350,9.934,90.594,90.52,19.33686093]
[1772636625550,20.21488213,90.62,90.52,19.33686093]
[1772636625950,20.21488213,90.62,90.533,19.33686093]
[1772636626156,20.21488213,90.645,90.535,19.33686093]
[1772636626346,20.21488213,90.645,90.541,19.33686093]
[1772636626751,20.21488213,90.645,90.543,19.33686093]
[1772636626958,9.929,90.635,90.559,19.33686093]
[1772636627358,20.21488213,90.629,90.533,19.33686093]
[1772636627560,20.21488213,90.609,90.533,19.33686093]
[1772636627752,20.21488213,90.609,90.511,19.33686093]
[1772636627957,20.21488213,90.609,90.52,9.942]
[1772636627958,9.934,90.593,90.52,9.942]
[1772636628257,20.21488213,90.609,90.513,19.33686093]
[1772636628455,20.21488213,90.609,90.515,9.942]
[1772636628858,7.98482166,90.59,90.515,9.942]
[1772636629158,7.98482166,90.61,90.513,19.33686093]
[1772636629356,7.98482166,90.61,90.515,20.81739377]
[1772636629555,21.14371356,90.609,90.517,20.81739377]
[1772636629853,21.14371356,90.589,90.493,20.81739377]
[1772636630254,9.938,90.556,90.495,9.944]
[1772636630459,29.12853522,90.57,90.493,20.81739377]
[1772636630864,21.14371356,90.57,90.493,20.81739377]
[1772636631057,21.14371356,90.569,90.494,9.945]
[1772636631256,7.98482166,90.59,90.496,20.81739377]
[1772636631457,21.14371356,90.595,90.498,20.81739377]
[1772636631660,9.933,90.598,90.53,9.941]
[1772636631860,9.933,90.598,90.527,20.81739377]
[1772636631861,7.98482166,90.61,90.527,20.81739377]
[1772636632057,29.12853522,90.61,90.527,20.81739377]
[1772636632258,21.14371356,90.609,90.493,20.81739377]
[1772636632463,7.98205437,90.6,90.501,20.81739377]
[1772636632660,7.98205437,90.6,90.503,20.81739377]
[1772636632862,7.98205437,90.6,90.505,20.81739377]
[1772636633058,9.935,90.582,90.516,9.942]
[1772636633266,21.14371356,90.599,90.516,9.942]
[1772636633460,21.14371356,90.599,90.507,20.81739377]
[1772636633654,21.14371356,90.599,90.419,154.829]
[1772636633655,9.94,90.533,90.466,20.81739377]
[1772636633855,7.98205437,90.58,90.468,20.81739377]
[1772636633856,21.14371356,90.559,90.468,20.81739377]
[1772636634063,21.14371356,90.559,90.444,10.06604264]
[1772636634064,21.14371356,90.539,90.444,20.81739377]
[1772636634258,9.944,90.496,90.445,8.31375449]
[1772636634462,21.14371356,90.499,90.418,20.81739377]
[1772636634767,21.14371356,90.499,90.397,20.81739377]
[1772636634960,9.947,90.473,90.398,8.32722921]
[1772636635264,9.947,90.473,90.397,20.81739377]
[1772636635265,21.14371356,90.473,90.399,8.32722921]
[1772636635460,7.98205437,90.48,90.403,20.81739377]
[1772636635669,7.98205437,90.52,90.405,20.81739377]
[1772636635966,21.14371356,90.519,90.421,20.81739377]
[1772636636161,9.945,90.492,90.431,9.951]
[1772636636363,21.14371356,90.519,90.421,20.81739377]
[1772636636562,21.14371356,90.519,90.423,20.81739377]
[1772636636761,21.14371356,90.549,90.425,20.81739377]
[1772636636964,21.14371356,90.549,90.437,20.81739377]
[1772636637161,21.14371356,90.549,90.467,9.948]
[1772636637162,9.94,90.536,90.467,9.948]
[1772636637465,21.14371356,90.549,90.465,20.81739377]
[1772636637868,21.14371356,90.549,90.43,20.98879562]
[1772636637869,21.14371356,90.575,90.467,20.81739377]
[1772636638162,21.14371356,90.575,90.469,20.81739377]
[1772636638366,9.938,90.55,90.471,20.81739377]
[1772636638566,21.14371356,90.575,90.473,20.81739377]
[1772636638772,21.14371356,90.575,90.475,20.81739377]
[1772636638963,9.936,90.573,90.494,9.945]
[1772636639163,21.14371356,90.575,90.477,20.81739377]
[1772636639372,21.14371356,90.575,90.479,20.81739377]
[1772636639663,21.14371356,90.575,90.481,20.81739377]
[1772636639860,21.14371356,90.575,90.483,20.81739377]
[1772636640060,21.14371356,90.575,90.485,20.81739377]
[1772636640269,21.14371356,90.575,90.471,9.947]
[1772636640464,21.14371356,90.575,90.459,20.81739377]
[1772636640866,21.14371356,90.55,90.459,20.81739377]
[1772636641064,21.14371356,90.549,90.434,20.81739377]
[1772636641263,21.14371356,90.549,90.435,8.30345672]
[1772636641466,21.14371356,90.549,90.436,8.3052196]
[1772636641662,21.14371356,90.549,90.4,20.98879562]
[1772636641663,21.14371356,90.552,90.441,20.81739377]
[1772636641861,21.14371356,90.579,90.463,20.81739377]
[1772636642060,21.14371356,90.579,90.465,20.81739377]
[1772636642261,21.14371356,90.579,90.432,20.1319715]
[1772636642262,21.14371356,90.579,90.467,20.81739377]
[1772636642458,21.14371356,90.579,90.469,20.81739377]
[1772636642663,21.14371356,90.579,90.471,20.81739377]
[1772636642866,21.14371356,90.579,90.473,20.81739377]
[1772636643073,21.14371356,90.579,90.474,8.30196105]
[1772636643269,21.14371356,90.579,90.486,9.945]
[1772636643270,9.938,90.552,90.486,9.945]
[1772636643466,21.14371356,90.579,90.473,20.81739377]
[1772636643666,21.14371356,90.609,90.483,20.81739377]
[1772636643871,9.934,90.589,90.511,20.81739377]
[1772636644072,21.14371356,90.588,90.511,20.81739377]
[1772636644458,20.98879562,90.61,90.511,20.81739377]
[1772636644459,9.935,90.584,90.521,9.942]
[1772636644659,20.98879562,90.61,90.521,9.942]
[1772636644660,21.14371356,90.609,90.521,9.942]
[1772636644865,21.14371356,90.609,90.511,20.81739377]
[1772636645064,9.935,90.586,90.53,9.941]
[1772636645259,21.14371356,90.609,90.511,20.81739377]
[1772636645460,21.14371356,90.609,90.513,20.81739377]
[1772636645759,9.934,90.588,90.519,9.942]
[1772636645963,21.14371356,90.635,90.521,20.81739377]
[1772636646163,21.14371356,90.635,90.523,20.81739377]
[1772636646371,21.14371356,90.635,90.525,20.81739377]
[1772636646567,21.14371356,90.635,90.527,20.81739377]
[1772636646773,21.14371356,90.635,90.529,20.81739377]
[1772636646965,21.14371356,90.659,90.544,20.81739377]
[1772636647168,21.14371356,90.659,90.546,20.81739377]
[1772636647371,21.14371356,90.659,90.569,9.936]
[1772636647372,9.929,90.633,90.569,9.936]
[1772636647563,21.14371356,90.659,90.571,20.81739377]
[1772636647769,21.14371356,90.659,90.573,20.81739377]
[1772636647969,21.14371356,90.659,90.574,8.30723009]
[1772636648367,21.14371356,90.689,90.58,20.81739377]
[1772636648574,21.14371356,90.689,90.588,20.81739377]
[1772636648772,21.14371356,90.689,90.601,20.81739377]
[1772636648975,21.14371356,90.689,90.606,20.81739377]
[1772636649180,21.14371356,90.689,90.607,8.30723009]
[1772636649379,21.14371356,90.689,90.564,20.19191219]
[1772636649380,21.14371356,90.689,90.608,29.12462386]
[1772636649575,21.14371356,90.689,90.609,8.30723009]
[1772636649776,21.14371356,90.689,90.57,30.91334986]
[1772636649974,21.14371356,90.689,90.57,20.81739377]
[1772636650172,9.927,90.657,90.585,20.81739377]
[1772636650375,21.14371356,90.689,90.588,20.81739377]
[1772636650783,21.14371356,90.689,90.601,20.81739377]
[1772636650983,21.14371356,90.679,90.575,20.81739377]
[1772636652074,21.14371356,90.649,90.531,10.09595609]
[1772636652279,21.14371356,90.619,90.515,20.81739377]
[1772636652681,21.14371356,90.594,90.518,9.942]